[Event "Titled Tuesday Blitz January 17 Late 2023"]
[White "Skvortsov, Andrei"]
[Black "Perez Perez, Gabriel"]
[WhiteFideId "24108600"]
[BlackFideId "32089147"]
[WhiteElo "2313"]
[BlackElo "2185"]
[Result "1-0"]
[Round "11"]
[TimeControl "180+2"]
[Date "2023.01.17"]
[WhiteClock "0:01:03"]
[BlackClock "0:00:02"]

1. d4 {[%clk 0:03:00]}  f5 {[%clk 0:02:54]} 2. g3 {[%clk 0:02:58]}  Nf6 {[%clk 0:02:53]} 3. Bg2 {[%clk 0:02:59]}  g6 {[%clk 0:02:54]} 4. Nd2 {[%clk 0:02:59]}  d5 {[%clk 0:02:51]} 5. Ngf3 {[%clk 0:02:59]}  Bg7 {[%clk 0:02:52]} 6. Ne5 {[%clk 0:02:59]}  O-O {[%clk 0:02:53]} 7. O-O {[%clk 0:02:57]}  c6 {[%clk 0:02:53]} 8. c4 {[%clk 0:02:56]}  Nbd7 {[%clk 0:02:54]} 9. cxd5 {[%clk 0:02:56]}  cxd5 {[%clk 0:02:54]} 10. Ndf3 {[%clk 0:02:55]}  Ne4 {[%clk 0:02:54]} 11. Nd3 {[%clk 0:02:55]}  e6 {[%clk 0:02:48]} 12. Be3 {[%clk 0:02:55]}  Qe7 {[%clk 0:02:46]} 13. Rc1 {[%clk 0:02:55]}  Nb6 {[%clk 0:02:47]} 14. b3 {[%clk 0:02:54]}  Bd7 {[%clk 0:02:47]} 15. Nfe5 {[%clk 0:02:54]}  Bb5 {[%clk 0:02:47]} 16. f3 {[%clk 0:02:51]}  Nf6 {[%clk 0:02:44]} 17. Nc5 {[%clk 0:02:52]}  Rfc8 {[%clk 0:02:43]} 18. a4 {[%clk 0:02:50]}  Be8 {[%clk 0:02:40]} 19. Qd2 {[%clk 0:02:49]}  a5 {[%clk 0:02:12]} 20. Bf2 {[%clk 0:02:41]}  Bc6 {[%clk 0:02:12]} 21. Rfe1 {[%clk 0:02:36]}  Ne8 {[%clk 0:02:03]} 22. Ned3 {[%clk 0:02:36]}  Nd6 {[%clk 0:01:58]} 23. Nf4 {[%clk 0:02:35]}  Bh6 {[%clk 0:01:51]} 24. Nxd5 {[%clk 0:02:26]}  Bxd2 {[%clk 0:01:29]} 25. Nxe7+ {[%clk 0:02:26]}  Kf7 {[%clk 0:01:24]} 26. Nxc8 {[%clk 0:02:27]}  Rxc8 {[%clk 0:01:17]} 27. Rc2 {[%clk 0:02:20]}  Bxe1 {[%clk 0:01:17]} 28. Bxe1 {[%clk 0:02:21]}  Ra8 {[%clk 0:01:11]} 29. e4 {[%clk 0:02:21]}  Ke7 {[%clk 0:01:05]} 30. Bd2 {[%clk 0:02:04]}  Nd7 {[%clk 0:00:58]} 31. Bg5+ {[%clk 0:01:56]}  Kf7 {[%clk 0:00:50]} 32. e5 {[%clk 0:01:45]}  Nxc5 {[%clk 0:00:48]} 33. Rxc5 {[%clk 0:01:43]}  Ne8 {[%clk 0:00:46]} 34. Bd2 {[%clk 0:01:41]}  Bd5 {[%clk 0:00:44]} 35. Rb5 {[%clk 0:01:31]}  Nc7 {[%clk 0:00:41]} 36. Rb6 {[%clk 0:01:30]}  Bc6 {[%clk 0:00:35]} 37. f4 {[%clk 0:01:26]}  Nd5 {[%clk 0:00:30]} 38. Bxd5 {[%clk 0:01:26]}  Bxd5 {[%clk 0:00:31]} 39. Kf2 {[%clk 0:01:25]}  Bc6 {[%clk 0:00:25]} 40. Ke3 {[%clk 0:01:23]}  Ke7 {[%clk 0:00:21]} 41. Kd3 {[%clk 0:01:11]}  Kd7 {[%clk 0:00:19]} 42. Kc4 {[%clk 0:01:11]}  Kc7 {[%clk 0:00:18]} 43. Kc5 {[%clk 0:01:12]}  Rd8 {[%clk 0:00:07]} 44. Bxa5 {[%clk 0:01:11]}  Rd5+ {[%clk 0:00:07]} 45. Kb4 {[%clk 0:01:12]}  Rxd4+ {[%clk 0:00:06]} 46. Kc3 {[%clk 0:01:09]}  Rd5 {[%clk 0:00:06]} 47. Rb5+ {[%clk 0:01:09]}  Kd7 {[%clk 0:00:03]} 48. Rxd5+ {[%clk 0:01:09]}  Bxd5 {[%clk 0:00:04]} 49. b4 {[%clk 0:01:09]}  Kc6 {[%clk 0:00:03]} 50. b5+ {[%clk 0:01:08]}  Kc5 {[%clk 0:00:04]} 51. Bb4+ {[%clk 0:01:06]}  Kb6 {[%clk 0:00:04]} 52. Kb2 {[%clk 0:01:05]}  Bf3 {[%clk 0:00:03]} 53. Ka3 {[%clk 0:01:05]}  Bd1 {[%clk 0:00:02]} 54. Bd6 {[%clk 0:01:03]} 1-0


[Site "https://www.chess.com"]

[Event "Titled Tuesday Blitz January 17 Late 2023"]
[White "Chor, Kevin"]
[Black "Kozin, Yuri"]
[WhiteFideId "2090740"]
[BlackFideId "4129920"]
[WhiteElo "1944"]
[BlackElo "2251"]
[Result "0-1"]
[Round "11"]
[TimeControl "180+2"]
[Date "2023.01.17"]
[WhiteClock "0:00:09"]
[BlackClock "0:00:16"]

1. e4 {[%clk 0:03:00]}  c5 {[%clk 0:03:00]} 2. Nf3 {[%clk 0:03:00]}  e6 {[%clk 0:03:00]} 3. d4 {[%clk 0:03:01]}  cxd4 {[%clk 0:03:01]} 4. Nxd4 {[%clk 0:03:00]}  a6 {[%clk 0:03:02]} 5. Nc3 {[%clk 0:03:00]}  Qc7 {[%clk 0:03:02]} 6. Bd3 {[%clk 0:02:59]}  Nc6 {[%clk 0:03:02]} 7. Nxc6 {[%clk 0:02:59]}  dxc6 {[%clk 0:03:03]} 8. O-O {[%clk 0:02:59]}  e5 {[%clk 0:03:03]} 9. Be3 {[%clk 0:02:50]}  Nf6 {[%clk 0:03:03]} 10. h3 {[%clk 0:02:46]}  Be7 {[%clk 0:03:02]} 11. f4 {[%clk 0:02:35]}  O-O {[%clk 0:02:50]} 12. f5 {[%clk 0:02:35]}  b5 {[%clk 0:02:44]} 13. g4 {[%clk 0:02:28]}  h6 {[%clk 0:02:33]} 14. Qf3 {[%clk 0:02:05]}  Nh7 {[%clk 0:02:29]} 15. Ne2 {[%clk 0:01:54]}  Bh4 {[%clk 0:02:24]} 16. Rad1 {[%clk 0:01:48]}  b4 {[%clk 0:02:18]} 17. Bf2 {[%clk 0:01:41]}  Qe7 {[%clk 0:02:14]} 18. Ng3 {[%clk 0:01:32]}  a5 {[%clk 0:02:02]} 19. Nh5 {[%clk 0:01:27]}  Ba6 {[%clk 0:01:56]} 20. Bxa6 {[%clk 0:01:19]}  Rxa6 {[%clk 0:01:55]} 21. Qd3 {[%clk 0:01:05]}  Raa8 {[%clk 0:01:51]} 22. Qd6 {[%clk 0:01:02]}  Bxf2+ {[%clk 0:01:40]} 23. Rxf2 {[%clk 0:00:57]}  Qh4 {[%clk 0:01:37]} 24. Qxe5 {[%clk 0:00:46]}  f6 {[%clk 0:01:05]} 25. Qc7 {[%clk 0:00:34]}  Rf7 {[%clk 0:00:42]} 26. Rd7 {[%clk 0:00:31]}  Raf8 {[%clk 0:00:40]} 27. Qxc6 {[%clk 0:00:29]}  Ng5 {[%clk 0:00:38]} 28. Nf4 {[%clk 0:00:18]}  Qg3+ {[%clk 0:00:30]} 29. Kf1 {[%clk 0:00:19]}  Nxh3 {[%clk 0:00:30]} 30. Nxh3 {[%clk 0:00:17]}  Qxh3+ {[%clk 0:00:31]} 31. Rg2 {[%clk 0:00:15]}  Qf3+ {[%clk 0:00:31]} 32. Kg1 {[%clk 0:00:15]}  Rxd7 {[%clk 0:00:27]} 33. Qxd7 {[%clk 0:00:15]}  Qxe4 {[%clk 0:00:28]} 34. Qe6+ {[%clk 0:00:12]}  Qxe6 {[%clk 0:00:28]} 35. fxe6 {[%clk 0:00:13]}  Re8 {[%clk 0:00:28]} 36. Re2 {[%clk 0:00:12]}  Kh7 {[%clk 0:00:28]} 37. a3 {[%clk 0:00:12]}  Kg6 {[%clk 0:00:27]} 38. axb4 {[%clk 0:00:11]}  axb4 {[%clk 0:00:28]} 39. Re4 {[%clk 0:00:11]}  f5 {[%clk 0:00:27]} 40. gxf5+ {[%clk 0:00:12]}  Kxf5 {[%clk 0:00:28]} 41. Rxb4 {[%clk 0:00:12]}  Rxe6 {[%clk 0:00:28]} 42. Rb7 {[%clk 0:00:12]}  g5 {[%clk 0:00:28]} 43. Kf2 {[%clk 0:00:12]}  g4 {[%clk 0:00:26]} 44. Rb5+ {[%clk 0:00:10]}  Kf4 {[%clk 0:00:23]} 45. Rb4+ {[%clk 0:00:10]}  Kg5 {[%clk 0:00:24]} 46. Rb5+ {[%clk 0:00:10]}  Kh4 {[%clk 0:00:24]} 47. c4 {[%clk 0:00:08]}  h5 {[%clk 0:00:24]} 48. Rf5 {[%clk 0:00:05]}  Rb6 {[%clk 0:00:19]} 49. c5 {[%clk 0:00:04]}  Rxb2+ {[%clk 0:00:18]} 50. Ke3 {[%clk 0:00:05]}  Rc2 {[%clk 0:00:16]} 51. Kd3 {[%clk 0:00:04]}  Rc1 {[%clk 0:00:16]} 52. Kd4 {[%clk 0:00:05]}  g3 {[%clk 0:00:16]} 53. Rf4+ {[%clk 0:00:04]}  Kh3 {[%clk 0:00:16]} 54. Rf5 {[%clk 0:00:03]}  h4 {[%clk 0:00:16]} 55. Kd5 {[%clk 0:00:03]}  g2 {[%clk 0:00:16]} 56. c6 {[%clk 0:00:04]}  g1=Q {[%clk 0:00:16]} 57. Kd6 {[%clk 0:00:03]}  Qg3+ {[%clk 0:00:16]} 58. Kd7 {[%clk 0:00:03]}  Qg4 {[%clk 0:00:16]} 59. Ke6 {[%clk 0:00:03]}  Rxc6+ {[%clk 0:00:15]} 60. Kd7 {[%clk 0:00:04]}  Qxf5+ {[%clk 0:00:15]} 61. Kxc6 {[%clk 0:00:05]}  Kg4 {[%clk 0:00:15]} 62. Kb6 {[%clk 0:00:05]}  Qe5 {[%clk 0:00:15]} 63. Kc6 {[%clk 0:00:06]}  Kf4 {[%clk 0:00:15]} 64. Kb6 {[%clk 0:00:06]}  Qd5 {[%clk 0:00:15]} 65. Ka6 {[%clk 0:00:06]}  Qb3 {[%clk 0:00:14]} 66. Ka7 {[%clk 0:00:07]}  Ke5 {[%clk 0:00:15]} 67. Ka8 {[%clk 0:00:07]}  Kd6 {[%clk 0:00:15]} 68. Ka7 {[%clk 0:00:08]}  Kc6 {[%clk 0:00:16]} 69. Ka8 {[%clk 0:00:09]}  Qb7# {[%clk 0:00:16]} 0-1


[Site "https://www.chess.com"]

[Event "Titled Tuesday Blitz January 17 Late 2023"]
[White "Hajiyev, Kanan"]
[Black "Olafsson, Helgi"]
[WhiteFideId "13404148"]
[BlackFideId "2300010"]
[WhiteElo "2197"]
[BlackElo "2491"]
[Result "1-0"]
[Round "11"]
[TimeControl "180+2"]
[Date "2023.01.17"]
[WhiteClock "0:00:33"]
[BlackClock "0:00:03"]

1. d4 {[%clk 0:02:21]}  Nf6 {[%clk 0:02:58]} 2. Nf3 {[%clk 0:02:20]}  g6 {[%clk 0:02:55]} 3. c4 {[%clk 0:02:20]}  Bg7 {[%clk 0:02:55]} 4. g3 {[%clk 0:02:20]}  c5 {[%clk 0:02:54]} 5. Bg2 {[%clk 0:02:13]}  cxd4 {[%clk 0:02:50]} 6. Nxd4 {[%clk 0:02:14]}  Qc7 {[%clk 0:02:49]} 7. b3 {[%clk 0:02:02]}  a6 {[%clk 0:02:44]} 8. Bb2 {[%clk 0:02:01]}  O-O {[%clk 0:02:35]} 9. O-O {[%clk 0:02:01]}  Nc6 {[%clk 0:02:30]} 10. Nc3 {[%clk 0:01:59]}  d6 {[%clk 0:02:22]} 11. Rc1 {[%clk 0:01:53]}  Nxd4 {[%clk 0:02:10]} 12. Qxd4 {[%clk 0:01:53]}  Rb8 {[%clk 0:02:05]} 13. Rfd1 {[%clk 0:01:50]}  Qa5 {[%clk 0:01:55]} 14. a3 {[%clk 0:01:45]}  Qh5 {[%clk 0:01:47]} 15. Nd5 {[%clk 0:01:33]}  Re8 {[%clk 0:01:41]} 16. Bf3 {[%clk 0:01:31]}  Qh3 {[%clk 0:01:35]} 17. Nxe7+ {[%clk 0:00:55]}  Rxe7 {[%clk 0:01:31]} 18. Qxd6 {[%clk 0:00:55]}  Re8 {[%clk 0:00:16]} 19. Bxf6 {[%clk 0:00:47]}  Be6 {[%clk 0:00:05]} 20. Bxg7 {[%clk 0:00:44]}  Kxg7 {[%clk 0:00:05]} 21. b4 {[%clk 0:00:35]}  h5 {[%clk 0:00:05]} 22. c5 {[%clk 0:00:32]}  h4 {[%clk 0:00:04]} 23. Qd4+ {[%clk 0:00:32]}  Kg8 {[%clk 0:00:03]} 24. Qxh4 {[%clk 0:00:32]}  Qxh4 {[%clk 0:00:03]} 25. gxh4 {[%clk 0:00:33]} 1-0


[Site "https://www.chess.com"]

[Event "Titled Tuesday Blitz January 17 Late 2023"]
[White "Estrada Nieto, Julian"]
[Black "ArchibaldCerveza29"]
[WhiteFideId "5101018"]
[WhiteElo "2215"]
[BlackElo "2547"]
[Result "1-0"]
[Round "11"]
[TimeControl "180+2"]
[Date "2023.01.17"]
[WhiteClock "0:00:12"]
[BlackClock "0:00:02"]

1. e4 {[%clk 0:03:00]}  e5 {[%clk 0:02:59]} 2. Nf3 {[%clk 0:03:01]}  Nc6 {[%clk 0:03:00]} 3. Bb5 {[%clk 0:03:01]}  g6 {[%clk 0:03:00]} 4. d4 {[%clk 0:02:58]}  exd4 {[%clk 0:03:01]} 5. Bg5 {[%clk 0:02:58]}  Be7 {[%clk 0:03:01]} 6. Bxe7 {[%clk 0:02:56]}  Qxe7 {[%clk 0:03:02]} 7. Bxc6 {[%clk 0:02:56]}  dxc6 {[%clk 0:03:03]} 8. Qxd4 {[%clk 0:02:56]}  Nf6 {[%clk 0:03:03]} 9. Nc3 {[%clk 0:02:55]}  Bg4 {[%clk 0:03:03]} 10. Qe3 {[%clk 0:02:40]}  O-O-O {[%clk 0:03:02]} 11. O-O {[%clk 0:02:36]}  Rhe8 {[%clk 0:02:59]} 12. Qxa7 {[%clk 0:02:35]}  Bxf3 {[%clk 0:02:50]} 13. gxf3 {[%clk 0:02:25]}  Rd2 {[%clk 0:02:45]} 14. Rad1 {[%clk 0:02:15]}  Rd6 {[%clk 0:02:38]} 15. Qa8+ {[%clk 0:02:00]}  Kd7 {[%clk 0:02:38]} 16. Qxb7 {[%clk 0:01:59]}  Nh5 {[%clk 0:02:05]} 17. Rxd6+ {[%clk 0:01:56]}  Kxd6 {[%clk 0:02:06]} 18. Rd1+ {[%clk 0:01:49]}  Ke5 {[%clk 0:02:03]} 19. Qxc6 {[%clk 0:01:38]}  Nf4 {[%clk 0:01:48]} 20. Qb5+ {[%clk 0:01:18]}  c5 {[%clk 0:01:47]} 21. Kf1 {[%clk 0:01:08]}  Rc8 {[%clk 0:01:33]} 22. Nd5 {[%clk 0:00:58]}  Qh4 {[%clk 0:01:08]} 23. Nxf4 {[%clk 0:00:56]}  Kxf4 {[%clk 0:01:09]} 24. Qd7 {[%clk 0:00:52]}  Ra8 {[%clk 0:00:40]} 25. Qd6+ {[%clk 0:00:44]}  Kg5 {[%clk 0:00:39]} 26. Qe7+ {[%clk 0:00:39]}  Kh5 {[%clk 0:00:38]} 27. Rd5+ {[%clk 0:00:33]}  f5 {[%clk 0:00:33]} 28. Qxh7+ {[%clk 0:00:29]}  Kg5 {[%clk 0:00:33]} 29. Qe7+ {[%clk 0:00:28]}  Kh5 {[%clk 0:00:33]} 30. Qxh4+ {[%clk 0:00:28]}  Kxh4 {[%clk 0:00:33]} 31. exf5 {[%clk 0:00:27]}  gxf5 {[%clk 0:00:34]} 32. Rxf5 {[%clk 0:00:26]}  Rxa2 {[%clk 0:00:34]} 33. Rxc5 {[%clk 0:00:25]}  Ra1+ {[%clk 0:00:33]} 34. Ke2 {[%clk 0:00:24]}  Ra4 {[%clk 0:00:27]} 35. b3 {[%clk 0:00:22]}  Ra1 {[%clk 0:00:26]} 36. b4 {[%clk 0:00:20]}  Rb1 {[%clk 0:00:27]} 37. b5 {[%clk 0:00:20]}  Rb2 {[%clk 0:00:28]} 38. Kd3 {[%clk 0:00:19]}  Rb1 {[%clk 0:00:27]} 39. c4 {[%clk 0:00:19]}  Rb2 {[%clk 0:00:27]} 40. Rc6 {[%clk 0:00:18]}  Rb1 {[%clk 0:00:20]} 41. Kd4 {[%clk 0:00:17]}  Rd1+ {[%clk 0:00:20]} 42. Kc5 {[%clk 0:00:17]}  Rc1 {[%clk 0:00:21]} 43. b6 {[%clk 0:00:18]}  Rb1 {[%clk 0:00:22]} 44. Rc7 {[%clk 0:00:18]}  Rb2 {[%clk 0:00:21]} 45. b7 {[%clk 0:00:18]}  Re2 {[%clk 0:00:20]} 46. b8=Q {[%clk 0:00:17]}  Re5+ {[%clk 0:00:20]} 47. Kd4 {[%clk 0:00:17]}  Rf5 {[%clk 0:00:21]} 48. Qd8+ {[%clk 0:00:16]}  Kh3 {[%clk 0:00:19]} 49. Rh7+ {[%clk 0:00:15]}  Kg2 {[%clk 0:00:19]} 50. Qg8+ {[%clk 0:00:15]}  Kh1 {[%clk 0:00:19]} 51. Rg7 {[%clk 0:00:13]}  Rf4+ {[%clk 0:00:14]} 52. Kc5 {[%clk 0:00:12]}  Rf5+ {[%clk 0:00:14]} 53. Kb4 {[%clk 0:00:12]}  Rxf3 {[%clk 0:00:01]} 54. Rg1+ {[%clk 0:00:12]}  Kxh2 {[%clk 0:00:02]} 55. Qg2# {[%clk 0:00:12]} 1-0


[Site "https://www.chess.com"]

[Event "Titled Tuesday Blitz January 17 Late 2023"]
[White "Kalajzic, Ivan"]
[Black "Mendez Fortes, Eduardo Jesus"]
[WhiteFideId "14506378"]
[BlackFideId "3502376"]
[WhiteElo "2062"]
[BlackElo "2250"]
[Result "0-1"]
[Round "11"]
[TimeControl "180+2"]
[Date "2023.01.17"]
[WhiteClock "0:00:33"]
[BlackClock "0:01:36"]

1. b3 {[%clk 0:03:00]}  d5 {[%clk 0:02:45]} 2. Bb2 {[%clk 0:02:56]}  Nf6 {[%clk 0:02:46]} 3. e3 {[%clk 0:02:56]}  e6 {[%clk 0:02:45]} 4. Nf3 {[%clk 0:02:56]}  c5 {[%clk 0:02:44]} 5. Ne5 {[%clk 0:02:56]}  Bd6 {[%clk 0:02:43]} 6. f4 {[%clk 0:02:54]}  O-O {[%clk 0:02:42]} 7. Be2 {[%clk 0:02:52]}  Nfd7 {[%clk 0:02:39]} 8. Nxd7 {[%clk 0:02:42]}  Nxd7 {[%clk 0:02:40]} 9. O-O {[%clk 0:02:42]}  e5 {[%clk 0:02:34]} 10. fxe5 {[%clk 0:02:41]}  Nxe5 {[%clk 0:02:35]} 11. Bf3 {[%clk 0:02:32]}  Be6 {[%clk 0:02:28]} 12. Nc3 {[%clk 0:02:26]}  Nxf3+ {[%clk 0:02:26]} 13. Qxf3 {[%clk 0:02:25]}  Qg5 {[%clk 0:02:26]} 14. h3 {[%clk 0:02:03]}  Qe5 {[%clk 0:02:21]} 15. Nd1 {[%clk 0:01:36]}  Qh2+ {[%clk 0:02:12]} 16. Kf2 {[%clk 0:01:37]}  f5 {[%clk 0:02:07]} 17. Nc3 {[%clk 0:00:55]}  f4 {[%clk 0:02:04]} 18. Rh1 {[%clk 0:00:51]}  fxe3+ {[%clk 0:02:03]} 19. Ke2 {[%clk 0:00:44]}  Rxf3 {[%clk 0:01:42]} 20. Rxh2 {[%clk 0:00:44]}  Rf2+ {[%clk 0:01:42]} 21. Kxe3 {[%clk 0:00:45]}  Raf8 {[%clk 0:01:41]} 22. Nd1 {[%clk 0:00:39]}  d4+ {[%clk 0:01:38]} 23. Kd3 {[%clk 0:00:34]}  Bxh2 {[%clk 0:01:36]} 24. Nxf2 {[%clk 0:00:33]}  Rxf2 {[%clk 0:01:36]} 0-1


[Site "https://www.chess.com"]

[Event "Titled Tuesday Blitz January 17 Late 2023"]
[White "Pein, Jonathan"]
[Black "Torres Dominguez, David"]
[WhiteFideId "417092"]
[BlackFideId "2220857"]
[WhiteElo "2265"]
[BlackElo "1994"]
[Result "1-0"]
[Round "11"]
[TimeControl "180+2"]
[Date "2023.01.17"]
[WhiteClock "0:01:05"]
[BlackClock "0:00:03"]

1. e4 {[%clk 0:02:57]}  Nc6 {[%clk 0:02:45]} 2. Nf3 {[%clk 0:02:48]}  e5 {[%clk 0:02:44]} 3. Nc3 {[%clk 0:02:47]}  Nf6 {[%clk 0:02:43]} 4. d4 {[%clk 0:02:44]}  exd4 {[%clk 0:02:43]} 5. Nd5 {[%clk 0:02:42]}  Be7 {[%clk 0:02:42]} 6. Bf4 {[%clk 0:02:40]}  d6 {[%clk 0:02:37]} 7. Nxd4 {[%clk 0:02:39]}  Nxd4 {[%clk 0:02:27]} 8. Qxd4 {[%clk 0:02:38]}  Nxd5 {[%clk 0:02:24]} 9. exd5 {[%clk 0:02:37]}  O-O {[%clk 0:02:18]} 10. Qd2 {[%clk 0:02:37]}  Bf5 {[%clk 0:02:12]} 11. O-O-O {[%clk 0:02:36]}  Bf6 {[%clk 0:02:10]} 12. f3 {[%clk 0:02:36]}  c6 {[%clk 0:01:53]} 13. g4 {[%clk 0:02:35]}  Bg6 {[%clk 0:01:52]} 14. h4 {[%clk 0:02:15]}  h5 {[%clk 0:01:51]} 15. g5 {[%clk 0:02:09]}  Be7 {[%clk 0:01:42]} 16. dxc6 {[%clk 0:02:08]}  bxc6 {[%clk 0:01:34]} 17. Bxd6 {[%clk 0:02:08]}  Bxd6 {[%clk 0:01:35]} 18. Qxd6 {[%clk 0:02:09]}  Qb6 {[%clk 0:01:18]} 19. Bc4 {[%clk 0:01:59]}  Qe3+ {[%clk 0:01:17]} 20. Kb1 {[%clk 0:01:58]}  Qxf3 {[%clk 0:01:17]} 21. Qxg6 {[%clk 0:01:56]}  Qg4 {[%clk 0:01:07]} 22. Bb3 {[%clk 0:01:48]}  Rab8 {[%clk 0:01:02]} 23. Qxc6 {[%clk 0:01:42]}  Kh8 {[%clk 0:00:54]} 24. Qc4 {[%clk 0:01:35]}  Qg3 {[%clk 0:00:42]} 25. Qe2 {[%clk 0:01:29]}  g6 {[%clk 0:00:33]} 26. Qe1 {[%clk 0:01:28]}  Qg4 {[%clk 0:00:29]} 27. Rg1 {[%clk 0:01:27]}  Qc8 {[%clk 0:00:24]} 28. Qe5+ {[%clk 0:01:23]}  Kh7 {[%clk 0:00:23]} 29. Rgf1 {[%clk 0:01:21]}  Rb7 {[%clk 0:00:17]} 30. a3 {[%clk 0:01:18]}  a5 {[%clk 0:00:16]} 31. Qxa5 {[%clk 0:01:17]}  Rxb3 {[%clk 0:00:10]} 32. cxb3 {[%clk 0:01:16]}  Kg8 {[%clk 0:00:09]} 33. Qc3 {[%clk 0:01:14]}  Qb7 {[%clk 0:00:08]} 34. Rc1 {[%clk 0:01:13]}  Qe4+ {[%clk 0:00:08]} 35. Ka2 {[%clk 0:01:12]}  Rb8 {[%clk 0:00:06]} 36. Qc4 {[%clk 0:01:09]}  Qe7 {[%clk 0:00:04]} 37. b4 {[%clk 0:01:07]}  Rb7 {[%clk 0:00:04]} 38. Qc8+ {[%clk 0:01:06]}  Kh7 {[%clk 0:00:04]} 39. Qc5 {[%clk 0:01:05]}  Qe6+ {[%clk 0:00:03]} 40. Qc4 {[%clk 0:01:05]}  Qe7 {[%clk 0:00:03]} 41. Rce1 {[%clk 0:01:06]}  Qd7 {[%clk 0:00:03]} 42. Rd1 {[%clk 0:01:06]}  Rc7 {[%clk 0:00:03]} 43. Rxd7 {[%clk 0:01:05]} 1-0


[Site "https://www.chess.com"]

[Event "Titled Tuesday Blitz January 17 Late 2023"]
[White "Ibadov, Dashgyn"]
[Black "Chlpik, Martin"]
[WhiteFideId "24107514"]
[BlackFideId "14923351"]
[WhiteElo "2391"]
[BlackElo "2287"]
[Result "0-1"]
[Round "11"]
[TimeControl "180+2"]
[Date "2023.01.17"]
[WhiteClock "0:00:02"]
[BlackClock "0:00:20"]

1. e4 {[%clk 0:03:00]}  c5 {[%clk 0:03:00]} 2. Nc3 {[%clk 0:02:58]}  d6 {[%clk 0:03:00]} 3. d4 {[%clk 0:02:57]}  cxd4 {[%clk 0:02:59]} 4. Qxd4 {[%clk 0:02:58]}  a6 {[%clk 0:03:00]} 5. b3 {[%clk 0:02:53]}  Nc6 {[%clk 0:03:00]} 6. Qd2 {[%clk 0:02:54]}  Nf6 {[%clk 0:03:00]} 7. Bb2 {[%clk 0:02:54]}  e6 {[%clk 0:03:01]} 8. O-O-O {[%clk 0:02:54]}  Be7 {[%clk 0:03:01]} 9. f3 {[%clk 0:02:50]}  O-O {[%clk 0:03:01]} 10. g4 {[%clk 0:02:50]}  Qa5 {[%clk 0:02:57]} 11. Kb1 {[%clk 0:02:44]}  Rd8 {[%clk 0:02:53]} 12. g5 {[%clk 0:02:43]}  Nh5 {[%clk 0:02:53]} 13. h4 {[%clk 0:02:39]}  Ng3 {[%clk 0:02:50]} 14. Rh2 {[%clk 0:02:29]}  Nxf1 {[%clk 0:02:49]} 15. Rxf1 {[%clk 0:02:29]}  d5 {[%clk 0:02:49]} 16. exd5 {[%clk 0:02:13]}  exd5 {[%clk 0:02:45]} 17. Re1 {[%clk 0:01:11]}  d4 {[%clk 0:02:42]} 18. Ne4 {[%clk 0:01:11]}  Bb4 {[%clk 0:02:42]} 19. Nf6+ {[%clk 0:00:35]}  gxf6 {[%clk 0:02:41]} 20. Qf4 {[%clk 0:00:34]}  Bxe1 {[%clk 0:02:31]} 21. gxf6 {[%clk 0:00:34]}  Qh5 {[%clk 0:02:03]} 22. Rg2+ {[%clk 0:00:29]}  Kh8 {[%clk 0:02:01]} 23. Ne2 {[%clk 0:00:12]}  Qxh4 {[%clk 0:01:38]} 24. Qc7 {[%clk 0:00:12]}  Be6 {[%clk 0:01:30]} 25. Bc1 {[%clk 0:00:12]}  Rac8 {[%clk 0:01:27]} 26. Qxb7 {[%clk 0:00:11]}  Na5 {[%clk 0:01:25]} 27. Qe7 {[%clk 0:00:09]}  d3 {[%clk 0:01:12]} 28. cxd3 {[%clk 0:00:10]}  Rd7 {[%clk 0:00:51]} 29. Qa3 {[%clk 0:00:08]}  Rdc7 {[%clk 0:00:49]} 30. Be3 {[%clk 0:00:04]}  Qh1 {[%clk 0:00:44]} 31. Rg1 {[%clk 0:00:04]}  Qxf3 {[%clk 0:00:43]} 32. Bh6 {[%clk 0:00:04]}  Qxd3+ {[%clk 0:00:43]} 33. Ka1 {[%clk 0:00:03]}  Bc3+ {[%clk 0:00:42]} 34. Nxc3 {[%clk 0:00:03]}  Qxc3+ {[%clk 0:00:42]} 35. Qb2 {[%clk 0:00:02]}  Qxb2+ {[%clk 0:00:40]} 36. Kxb2 {[%clk 0:00:03]}  Rg8 {[%clk 0:00:27]} 37. Bg7+ {[%clk 0:00:03]}  Rxg7 {[%clk 0:00:27]} 38. Rxg7 {[%clk 0:00:04]}  Bf5 {[%clk 0:00:23]} 39. b4 {[%clk 0:00:04]}  Nc4+ {[%clk 0:00:23]} 40. Kb3 {[%clk 0:00:03]}  Bg6 {[%clk 0:00:23]} 41. a4 {[%clk 0:00:03]}  Nb6 {[%clk 0:00:20]} 42. b5 {[%clk 0:00:03]}  axb5 {[%clk 0:00:20]} 43. axb5 {[%clk 0:00:02]}  Nd5 {[%clk 0:00:20]} 44. Ka4 {[%clk 0:00:02]}  Nxf6 {[%clk 0:00:20]} 45. b6 {[%clk 0:00:02]}  Rb7 {[%clk 0:00:20]} 0-1


[Site "https://www.chess.com"]

[Event "Titled Tuesday Blitz January 17 Late 2023"]
[White "Radovanovic, Dusan"]
[Black "Chernomordik, Pavel"]
[WhiteFideId "926868"]
[BlackFideId "2804530"]
[WhiteElo "2311"]
[BlackElo "2150"]
[Result "0-1"]
[Round "11"]
[TimeControl "180+2"]
[Date "2023.01.17"]
[WhiteClock "0:00:21"]
[BlackClock "0:01:12"]

1. e4 {[%clk 0:02:57]}  g6 {[%clk 0:02:59]} 2. d4 {[%clk 0:02:57]}  Bg7 {[%clk 0:02:59]} 3. Nc3 {[%clk 0:02:57]}  d6 {[%clk 0:02:59]} 4. Be3 {[%clk 0:02:56]}  a6 {[%clk 0:02:58]} 5. g4 {[%clk 0:02:54]}  b5 {[%clk 0:02:54]} 6. Bg2 {[%clk 0:02:54]}  Bb7 {[%clk 0:02:51]} 7. h4 {[%clk 0:02:53]}  h6 {[%clk 0:02:49]} 8. g5 {[%clk 0:02:46]}  Nd7 {[%clk 0:02:46]} 9. h5 {[%clk 0:02:44]}  gxh5 {[%clk 0:02:36]} 10. Rxh5 {[%clk 0:02:40]}  hxg5 {[%clk 0:02:31]} 11. Rxg5 {[%clk 0:02:38]}  Bf6 {[%clk 0:02:27]} 12. Rg3 {[%clk 0:02:20]}  e6 {[%clk 0:02:27]} 13. Qg4 {[%clk 0:01:53]}  b4 {[%clk 0:02:18]} 14. Nce2 {[%clk 0:01:49]}  c5 {[%clk 0:02:11]} 15. O-O-O {[%clk 0:01:48]}  Qa5 {[%clk 0:02:08]} 16. Kb1 {[%clk 0:01:46]}  O-O-O {[%clk 0:02:01]} 17. f4 {[%clk 0:01:21]}  Rh4 {[%clk 0:01:50]} 18. Qf3 {[%clk 0:01:16]}  cxd4 {[%clk 0:01:44]} 19. Nxd4 {[%clk 0:01:03]}  Nc5 {[%clk 0:01:43]} 20. Nb3 {[%clk 0:01:03]}  Nxb3 {[%clk 0:01:38]} 21. axb3 {[%clk 0:01:02]}  Ne7 {[%clk 0:01:34]} 22. Qf2 {[%clk 0:00:59]}  Qh5 {[%clk 0:01:21]} 23. e5 {[%clk 0:00:55]}  Qxd1+ {[%clk 0:01:19]} 24. Ka2 {[%clk 0:00:44]}  dxe5 {[%clk 0:01:16]} 25. Bxb7+ {[%clk 0:00:38]}  Kxb7 {[%clk 0:01:15]} 26. fxe5 {[%clk 0:00:31]}  Bxe5 {[%clk 0:01:14]} 27. Rf3 {[%clk 0:00:21]}  Rd5 {[%clk 0:01:12]} 0-1


[Site "https://www.chess.com"]